fUSD/lending_fUSD_20240210
["ID","MTS","AMOUNT","RATE_DAILY","PERIOD"]
[313706096,1707600645103,-500.0,0.00038356,30]
[313706097,1707600645115,-796.85375615,0.00038356,15]
[313706098,1707600645127,-500.0,0.00038356,30]
[313706099,1707600645138,-500.0,0.00038356,30]
[313706100,1707600645150,-537.26,0.00038356,30]
[313706101,1707600645163,-563.32,0.00038356,30]
[313706102,1707600645175,-500.0,0.00038356,30]
[313706103,1707600645187,-500.0,0.00038356,30]
[313706104,1707600645200,-500.0,0.00038356,30]
[313706106,1707600645212,-500.0,0.00038356,30]
[313706107,1707600645225,-493.5509,0.00038356,30]
[313706109,1707600645239,-827.96,0.00038356,30]
[313706112,1707600645252,-825.22,0.00038356,30]
[313706113,1707600645263,-287.66085412,0.00038356,30]
[313706114,1707600645275,-500.0,0.00038356,30]
[313706115,1707600645289,-500.0,0.00038356,30]
[313706119,1707600645301,-1010.79,0.00038356,30]
[313706121,1707600645315,-651.77,0.00038356,30]
[313706123,1707600645327,-500.0,0.00038356,30]
[313706126,1707600645339,-500.0,0.00038356,30]
[313706128,1707600645351,-500.0,0.00038356,30]
[313706130,1707600645362,-725.96,0.00038356,30]
[313706133,1707600645374,-589.3,0.00038356,30]
[313706135,1707600645386,-500.0,0.00038356,30]
[313706136,1707600645397,-500.0,0.00038356,30]
[313706137,1707600645409,-500.0,0.00038356,30]
[313706138,1707600645421,-500.0,0.00038356,30]
[313706139,1707600645433,-500.0,0.00038356,30]
[313706140,1707600645445,-500.0,0.00038356,30]
[313706141,1707600645457,-300.0,0.00038356,30]
[313706142,1707600645468,-500.0,0.00038356,30]
[313706143,1707600645480,-500.0,0.00038356,30]
[313706144,1707600645492,-500.0,0.00038356,30]
[313706145,1707600645503,-500.0,0.00038356,30]
[313706146,1707600645515,-500.0,0.00038356,30]
[313706147,1707600645527,-500.0,0.00038356,30]
[313706148,1707600645539,-500.0,0.00038356,30]
[313706149,1707600645551,-500.0,0.00038356,30]
[313706150,1707600645562,-509.21,0.00038356,30]
[313706151,1707600645573,-500.0,0.00038356,30]
[313706152,1707600645585,-568.27165663,0.00038356,30]
[313706153,1707600645597,-500.0,0.00038356,30]
[313706154,1707600645609,-682.38,0.00038356,30]
[313706155,1707600645621,-500.0,0.00038356,30]
[313706156,1707600645632,-500.0,0.00038356,30]
[313706157,1707600645643,-500.0,0.00038356,30]
[313706158,1707600645655,-500.0,0.00038356,30]
[313706159,1707600645666,-634.59,0.00038356,30]
[313706160,1707600645678,-500.0,0.00038356,30]
[313706161,1707600645689,-510.8823787,0.00038356,30]
[313706162,1707600645701,-520.68,0.00038356,30]
[313706163,1707600645712,-500.0,0.00038356,30]
[313706164,1707600645723,-500.0,0.00038356,30]
[313706165,1707600645734,-500.0,0.00038356,30]
[313706166,1707600645745,-597.14787972,0.00038356,30]
[313706167,1707600645757,-500.0,0.00038356,30]
[313706168,1707600645768,-500.0,0.00038356,30]
[313706169,1707600645781,-500.0,0.00038356,30]
[313706170,1707600645792,-500.0,0.00038356,30]
[313706171,1707600645803,-500.0,0.00038356,30]
[313706173,1707600645815,-500.0,0.00038356,2]
[313706175,1707600645827,-489.79006157,0.00038356,30]
[313706178,1707600645838,-500.0,0.00038356,30]
[313706180,1707600645849,-500.0,0.00038356,30]
[313706182,1707600645861,-500.0,0.00038356,30]
[313706184,1707600645872,-500.0,0.00038356,30]
[313706187,1707600645884,-500.0,0.00038356,30]
[313706189,1707600645895,-500.0,0.00038356,30]
[313706191,1707600645906,-500.0,0.00038356,30]
[313706193,1707600645917,-500.0,0.00038356,30]
[313706196,1707600645928,-500.0,0.00038356,30]
[313706198,1707600645939,-512.53258443,0.00038356,30]
[313706200,1707600645951,-500.0,0.00038356,30]
[313706202,1707600645962,-500.0,0.00038356,30]
[313706205,1707600645974,-500.0,0.00038356,30]
[313706207,1707600645985,-500.0,0.00038356,30]
[313706209,1707600645996,-1039.53,0.00038356,30]
[313706211,1707600646007,-500.0,0.00038356,30]
[313706213,1707600646019,-298.57815826,0.00038356,30]
[313706214,1707600646031,-528.45,0.00038356,30]
[313706215,1707600646042,-416.05813095,0.00038356,30]
[313706216,1707600646054,-802.2,0.00038356,30]
[313706217,1707600646065,-500.0,0.00038356,30]
[313706218,1707600646077,-678.93,0.00038356,30]
[313706219,1707600646088,-500.0,0.00038356,30]
[313706221,1707600646100,-500.0,0.00038356,30]
[313706222,1707600646110,-500.0,0.00038356,30]
[313706223,1707600646119,-562.44989206,0.00038356,14]
[313706224,1707600646129,-500.0,0.00038356,30]
[313706225,1707600646138,-511.35,0.00038356,30]
[313706226,1707600646147,-500.0,0.00038356,30]
[313706227,1707600646156,-556.28,0.00038356,30]
[313706228,1707600646166,-500.0,0.00038356,30]
[313706229,1707600646175,-500.0,0.00038356,30]
[313706230,1707600646185,-280.05787332,0.00038356,30]
[313706231,1707600646194,-500.0,0.00038356,30]
[313706232,1707600646203,-500.0,0.00038356,30]
[313706233,1707600646214,-500.0,0.00038356,30]
[313706234,1707600646224,-500.0,0.00038356,30]
[313706235,1707600646591,-601.70763551,0.00038356,30]
[313706236,1707600646627,-500.0,0.00038356,30]
[313706237,1707600646654,-500.0,0.00038356,30]
[313706238,1707600646665,-619.38,0.00038356,30]
[313706239,1707600646674,-500.0,0.00038356,30]
[313706240,1707600646684,-500.0,0.00038356,30]
[313706241,1707600646693,-500.0,0.00038356,30]
[313706242,1707600646702,-500.0,0.00038356,30]
[313706243,1707600646711,-500.0,0.00038356,30]
[313706244,1707600646720,-508.14483447,0.00038356,30]
[313706245,1707600646730,-500.0,0.00038356,30]
[313706246,1707600646739,-510.12508973,0.00038356,30]
[313706247,1707600646749,-500.0,0.00038356,30]
[313706248,1707600646758,-535.96,0.00038356,30]
[313706249,1707600646767,-500.0,0.00038356,30]
[313706250,1707600646776,-520.36,0.00038356,30]
[313706251,1707600646788,-500.0,0.00038356,30]
[313706252,1707600646799,-500.0,0.00038356,30]
[313706253,1707600646808,-503.72053597,0.00038356,30]
[313706254,1707600646817,-500.0,0.00038356,30]
[313706255,1707600646826,-349.82480031,0.00038356,30]
[313706256,1707600646835,-500.0,0.00038356,30]
[313706257,1707600646845,-650.62,0.00038356,30]
[313706258,1707600646854,-500.0,0.00038356,30]
[313706259,1707600646864,-500.0,0.00038356,30]
[313706260,1707600646873,-500.0,0.00038356,30]
[313706261,1707600646882,-500.0,0.00038356,30]
[313706262,1707600646891,-500.0,0.00038356,30]
[313706263,1707600646900,-500.0,0.00038356,30]
[313706264,1707600646909,-500.0,0.00038356,30]
[313706265,1707600646919,-500.0,0.00038356,30]
[313706266,1707600646928,-643.42234499,0.00038356,30]
[313706267,1707600646937,-500.0,0.00038356,30]
[313706268,1707600646948,-514.16356677,0.00038356,30]
[313706269,1707600646958,-500.0,0.00038356,30]
[313706270,1707600646968,-500.0,0.00038356,30]
[313706271,1707600646977,-500.0,0.00038356,30]
[313706272,1707600646986,-500.0,0.00038356,30]
[313706273,1707600646995,-500.0,0.00038356,30]
[313706274,1707600647004,-500.0,0.00038356,30]
[313706275,1707600647013,-500.0,0.00038356,30]
[313706276,1707600647022,-500.0,0.00038356,30]
[313706277,1707600647033,-500.0,0.00038356,30]
[313706278,1707600647042,-515.13537514,0.00038356,30]
[313706279,1707600647051,-500.0,0.00038356,30]
[313706280,1707600647060,-500.0,0.00038356,30]
[313706281,1707600647069,-500.0,0.00038356,30]
[313706282,1707600647078,-500.0,0.00038356,30]
[313706283,1707600647087,-500.0,0.00038356,30]
[313706284,1707600647096,-752.52,0.00038356,30]
[313706285,1707600647105,-500.0,0.00038356,30]
[313706286,1707600647115,-500.0,0.00038356,30]
[313706287,1707600647123,-519.10823224,0.00038356,30]
[313706288,1707600647133,-500.0,0.00038356,30]
[313706289,1707600647142,-500.0,0.00038356,30]
[313706290,1707600647151,-500.0,0.00038356,30]
[313706291,1707600647160,-590.0,0.00038356,30]
[313706292,1707600647170,-740.72,0.00038356,30]
[313706293,1707600647180,-500.0,0.00038356,30]
[313706294,1707600647189,-500.0,0.00038356,30]
[313706295,1707600647198,-500.0,0.00038356,30]
[313706296,1707600647208,-500.0,0.00038356,30]
[313706297,1707600647217,-500.0,0.00038356,30]
[313706298,1707600647226,-651.16,0.00038356,30]
[313706299,1707600647237,-505.87874353,0.00038356,30]
[313706300,1707600647248,-500.0,0.00038356,20]
[313706301,1707600647257,-500.0,0.00038356,30]
[313706302,1707600647266,-500.0,0.00038356,30]
[313706303,1707600647276,-506.21905942,0.00038356,30]
[313706304,1707600647287,-500.0,0.00038356,30]
[313706305,1707600647296,-508.49288239,0.00038356,30]
[313706306,1707600647306,-500.0,0.00038356,30]
[313706307,1707600647317,-500.0,0.00038356,30]
[313706308,1707600647327,-835.86,0.00038356,30]
[313706309,1707600647337,-517.50657154,0.00038356,30]
[313706310,1707600647346,-519.69,0.00038356,30]
[313706311,1707600647356,-627.83,0.00038356,30]
[313706312,1707600647365,-500.0,0.00038356,30]
[313706313,1707600647375,-500.0,0.00038356,30]
[313706314,1707600647384,-510.71072158,0.00038356,30]
[313706315,1707600647393,-500.0,0.00038356,30]
[313706316,1707600647404,-500.0,0.00038356,30]
[313706317,1707600647413,-500.0,0.00038356,30]
[313706318,1707600647422,-500.0,0.00038356,30]
[313706319,1707600647431,-585.8282045,0.00038356,30]
[313706320,1707600647441,-500.0,0.00038356,30]
[313706321,1707600647452,-500.0,0.00038356,30]
[313706322,1707600647462,-500.0,0.00038356,30]
[313706323,1707600647472,-646.86,0.00038356,30]
[313706324,1707600647482,-500.0,0.00038356,30]
[313706325,1707600647491,-500.0,0.00038356,30]
[313706326,1707600647501,-504.87194079,0.00038356,30]
[313706327,1707600647510,-500.0,0.00038356,30]
[313706328,1707600647519,-500.0,0.00038356,30]
[313706329,1707600647529,-500.0,0.00038356,30]
[313706330,1707600647540,-500.0,0.00038356,30]
[313706331,1707600647549,-1073.3,0.00038356,30]
[313706332,1707600647558,-500.0,0.00038356,30]
[313706333,1707600647567,-500.0,0.00038356,30]
[313706334,1707600647577,-512.06135629,0.00038356,30]
[313706335,1707600647586,-160.10564377,0.00038356,2]
[313706336,1707600647595,-506.92614961,0.00038356,30]
[313706337,1707600647604,-500.0,0.00038356,5]
[313706338,1707600647613,-822.77,0.00038356,30]
[313706339,1707600647622,-500.0,0.00038356,30]
[313706340,1707600647632,-607.51604191,0.00038356,2]
[313706341,1707600647642,-500.0,0.00038356,30]
[313706342,1707600647652,-504.18279432,0.00038356,30]
[313706343,1707600647663,-500.0,0.00038356,30]
[313706344,1707600647673,-500.0,0.00038356,30]
[313706345,1707600647682,-500.0,0.00038356,30]
[313706346,1707600647691,-500.0,0.00038356,30]
[313706347,1707600647700,-150.0,0.00038356,30]
[313706348,1707600647710,-506.91130591,0.00038356,30]
[313706349,1707600647719,-500.0,0.00038356,30]
[313706350,1707600647728,-500.0,0.00038356,30]
[313706351,1707600647737,-518.97,0.00038356,30]
[313706352,1707600647746,-500.0,0.00038356,30]
[313706353,1707600647755,-500.0,0.00038356,30]
[313706354,1707600647765,-500.0,0.00038356,30]
[313706355,1707600647774,-500.0,0.00038356,30]
[313706356,1707600647785,-550.39,0.00038356,30]
[313706357,1707600647794,-500.0,0.00038356,30]
[313706358,1707600647802,-500.0,0.00038356,30]
[313706359,1707600647811,-579.61,0.00038356,30]
[313706360,1707600647820,-500.0,0.00038356,30]
[313706361,1707600647829,-500.0,0.00038356,30]
[313706362,1707600647839,-500.0,0.00038356,30]
[313706363,1707600647848,-500.0,0.00038356,30]
[313706364,1707600647857,-517.92,0.00038356,30]
[313706365,1707600647866,-500.0,0.00038356,30]
[313706366,1707600647875,-500.0,0.00038356,30]
[313706367,1707600647884,-500.0,0.00038356,30]
[313706368,1707600647893,-500.0,0.00038356,30]
[313706369,1707600647902,-500.0,0.00038356,30]
[313706370,1707600647911,-704.93,0.00038356,30]
[313706371,1707600647920,-507.52817391,0.00038356,30]
[313706372,1707600647930,-500.0,0.00038356,30]
[313706373,1707600647939,-956.96,0.00038356,30]
[313706374,1707600647949,-500.0,0.00038356,30]
[313706375,1707600647959,-500.0,0.00038356,30]
[313706376,1707600647969,-500.0,0.00038356,30]
[313706377,1707600647978,-500.0,0.00038356,30]
[313706378,1707600647987,-502.13037661,0.00038356,30]
[313706379,1707600647997,-578.55,0.00038356,30]
[313706380,1707600648006,-500.0,0.00038356,30]
[313706381,1707600648016,-511.94285043,0.00038356,30]
[313706382,1707600648025,-856.73,0.00038356,30]
[313706383,1707600648036,-500.0,0.00038356,2]
[313706384,1707600648046,-244.21723722,0.00038356,30]
[313706385,1707600648056,-500.0,0.00038356,30]
[313706386,1707600648065,-500.0,0.00038356,30]
[313706387,1707600648075,-500.0,0.00038356,30]
[313706388,1707600648084,-500.0,0.00038356,30]
[313706389,1707600648094,-640.04,0.00038356,30]
[313706390,1707600648103,-500.0,0.00038356,30]
[313706391,1707600648113,-451.11553576,0.00038356,30]
[313706392,1707600648122,-776.41,0.00038356,2]
[313706393,1707600648131,-513.26,0.00038356,30]
[313706394,1707600648141,-500.0,0.00038356,30]
[313706395,1707600648150,-500.0,0.00038356,3]
[313706396,1707600648159,-963.84,0.00038356,30]
[313706397,1707600648168,-500.0,0.00038356,30]
[313706398,1707600648178,-518.12,0.00038356,30]
[313706399,1707600648187,-500.0,0.00038356,30]
[313706400,1707600648197,-500.0,0.00038356,30]
[313706401,1707600648207,-500.0,0.00038356,30]
[313706402,1707600648217,-767.28,0.00038356,30]
[313706403,1707600648228,-500.0,0.00038356,7]
[313706404,1707600648237,-500.0,0.00038356,30]
[313706405,1707600648249,-558.34012689,0.00038356,30]
[313706406,1707600648258,-554.4,0.00038356,30]
[313706407,1707600648270,-500.0,0.00038356,30]
[313706408,1707600648280,-509.23,0.00038356,30]
[313706409,1707600648292,-165.56998867,0.00038356,30]
[313706410,1707600648302,-500.0,0.00038356,30]
[313706411,1707600648313,-500.0,0.00038356,30]
[313706412,1707600648323,-630.74495791,0.00038356,30]
[313706413,1707600648334,-500.0,0.00038356,30]
[313706414,1707600648344,-500.0,0.00038356,30]
[313706415,1707600648353,-500.0,0.00038356,30]
[313706416,1707600648363,-500.0,0.00038356,30]
[313706417,1707600648372,-499.81440704,0.00038356,30]
[313706418,1707600648382,-500.0,0.00038356,30]
[313706419,1707600648391,-500.0,0.00038356,7]
[313706420,1707600648402,-1007.77,0.00038356,30]
[313706421,1707600648412,-754.28,0.00038356,30]
[313706422,1707600648422,-500.0,0.00038356,30]
[313706423,1707600648431,-500.0,0.00038356,30]
[313706424,1707600648441,-500.0,0.00038356,30]
[313706425,1707600648450,-500.0,0.00038356,30]
[313706426,1707600648459,-500.0,0.00038356,30]
[313706427,1707600648469,-500.0,0.00038356,30]
[313706428,1707600648479,-500.0,0.00038356,30]
[313706429,1707600648490,-295.50337478,0.00038356,30]
[313706430,1707600648499,-500.0,0.00038356,30]
[313706431,1707600648509,-500.0,0.00038356,30]
[313706432,1707600648520,-500.0,0.00038356,30]
[313706433,1707600648529,-500.0,0.00038356,30]
[313706434,1707600648539,-500.0,0.00038356,30]
[313706435,1707600648548,-500.0,0.00038356,30]
[313706436,1707600648559,-1392.5,0.00038356,30]
[313706437,1707600648570,-500.0,0.00038356,30]
[313706438,1707600648580,-696.89,0.00038356,30]
[313706439,1707600648589,-500.0,0.00038356,30]
[313706440,1707600648599,-500.0,0.00038356,30]
[313706441,1707600648608,-396.33282604,0.00038356,30]
[313706442,1707600648618,-500.0,0.00038356,30]
[313706443,1707600648627,-500.0,0.00038356,30]
[313706444,1707600648638,-500.0,0.00038356,30]
[313706445,1707600648647,-500.0,0.00038356,30]
[313706446,1707600648657,-500.0,0.00038356,30]
[313706447,1707600648667,-500.0,0.00038356,30]
[313706448,1707600648678,-1033.01,0.00038356,30]
[313706449,1707600648688,-500.0,0.00038356,30]
[313706450,1707600648698,-589.39,0.00038356,30]
[313706451,1707600648707,-515.69967859,0.00038356,30]
[313706452,1707600648717,-352.86206878,0.00038356,30]
[313706453,1707600648727,-1048.7,0.00038356,30]
[313706454,1707600648737,-500.0,0.00038356,30]
[313706455,1707600648746,-508.81460422,0.00038356,30]
[313706456,1707600648755,-558.2,0.00038356,30]
[313706457,1707600648766,-500.0,0.00038356,30]
[313706458,1707600648776,-500.0,0.00038356,30]
[313706459,1707600648788,-500.0,0.00038356,30]
[313706460,1707600648798,-500.0,0.00038356,30]
[313706461,1707600648807,-500.0,0.00038356,30]
[313706462,1707600648817,-727.43,0.00038356,30]
[313706463,1707600648826,-500.0,0.00038356,30]
[313706464,1707600648835,-500.0,0.00038356,30]
[313706465,1707600648845,-500.0,0.00038356,30]
[313706466,1707600648854,-950.33,0.00038356,30]
[313706467,1707600648864,-500.0,0.00038356,30]
[313706468,1707600648874,-500.0,0.00038356,30]
[313706469,1707600648883,-500.0,0.00038356,30]
[313706470,1707600648893,-500.0,0.00038356,30]
[313706471,1707600648902,-677.42,0.00038356,30]
[313706472,1707600648912,-500.0,0.00038356,30]
[313706473,1707600648921,-1083.34,0.00038356,30]
[313706474,1707600648931,-500.0,0.00038356,30]
[313706475,1707600648940,-868.45,0.00038356,30]
[313706476,1707600648949,-522.00047501,0.00038356,30]
[313706477,1707600648958,-500.0,0.00038356,30]
[313706478,1707600648968,-500.0,0.00038356,30]
[313706479,1707600648978,-1123.28,0.00038356,30]
[313706480,1707600648987,-500.0,0.00038356,30]
[313706481,1707600648997,-724.69,0.00038356,30]
[313706482,1707600649007,-500.0,0.00038356,30]
[313706483,1707600649017,-500.0,0.00038356,30]
[313706484,1707600649026,-500.0,0.00038356,30]
[313706485,1707600649037,-500.0,0.00038356,30]
[313706486,1707600649047,-575.35,0.00038356,30]
[313706487,1707600649057,-1166.32,0.00038356,30]
[313706488,1707600649066,-500.0,0.00038356,30]
[313706489,1707600649075,-500.0,0.00038356,30]
[313706490,1707600649084,-500.0,0.00038356,30]
[313706491,1707600649093,-1041.2,0.00038356,30]
[313706492,1707600649102,-500.0,0.00038356,30]
[313706493,1707600649112,-500.0,0.00038356,30]
[313706494,1707600649121,-500.0,0.00038356,7]
[313706495,1707600649130,-500.0,0.00038356,30]
[313706496,1707600649142,-500.0,0.00038356,30]
[313706497,1707600649152,-500.0,0.00038356,30]
[313706498,1707600649161,-500.0,0.00038356,30]
[313706499,1707600649171,-1100.61,0.00038356,30]
[313706500,1707600649181,-500.0,0.00038356,30]
[313706501,1707600649190,-629.33,0.00038356,30]
[313706502,1707600649199,-1153.81,0.00038356,30]
[313706503,1707600649211,-500.0,0.00038356,30]
[313706504,1707600649221,-561.58,0.00038356,30]
[313706505,1707600649230,-534.05,0.00038356,30]
[313706506,1707600649241,-500.0,0.00038356,30]
[313706507,1707600649252,-500.0,0.00038356,30]
[313706508,1707600649262,-500.0,0.00038356,30]
[313706509,1707600649271,-619.24666002,0.00038356,30]
[313706510,1707600649283,-500.0,0.00038356,30]
[313706511,1707600649295,-500.0,0.00038356,30]
[313706512,1707600649305,-500.0,0.00038356,30]
[313706513,1707600649315,-500.0,0.00038356,30]
[313706514,1707600649327,-500.0,0.00038356,30]
[313706515,1707600649338,-500.0,0.00038356,30]
[313706516,1707600649348,-500.0,0.00038356,30]
[313706517,1707600649358,-500.0,0.00038356,30]
[313706518,1707600649369,-500.0,0.00038356,30]
[313706519,1707600649379,-500.0,0.00038356,30]
[313706520,1707600649389,-500.0,0.00038356,30]
[313706521,1707600649399,-500.0,0.00038356,30]
[313706522,1707600649409,-560.23962796,0.00038356,30]
[313706523,1707600649419,-500.0,0.00038356,30]
[313706524,1707600649429,-500.0,0.00038356,30]
[313706525,1707600649439,-501.27818349,0.00038356,30]
[313706526,1707600649448,-570.53,0.00038356,30]
[313706527,1707600649458,-500.0,0.00038356,30]
[313706528,1707600649467,-500.0,0.00038356,30]
[313706529,1707600649476,-510.11974822,0.00038356,30]
[313706530,1707600649486,-500.0,0.00038356,30]
[313706531,1707600649495,-500.0,0.00038356,30]
[313706532,1707600649504,-512.15714552,0.00038356,30]
[313706533,1707600649513,-500.0,0.00038356,30]
[313706534,1707600649523,-500.0,0.00038356,30]
[313706535,1707600649532,-500.0,0.00038356,30]
[313706536,1707600649543,-500.0,0.00038356,30]
[313706537,1707600649554,-500.0,0.00038356,30]
[313706538,1707600649564,-500.0,0.00038356,30]
[313706539,1707600649573,-500.0,0.00038356,30]
[313706540,1707600649583,-500.0,0.00038356,30]
[313706541,1707600649592,-500.0,0.00038356,30]
[313706542,1707600649602,-500.0,0.00038356,30]
[313706543,1707600649612,-500.0,0.00038356,30]
[313706544,1707600649624,-150.0,0.00038356,2]
[313706545,1707600649634,-500.0,0.00038356,30]
[313706546,1707600649643,-300.0,0.00038356,7]
[313706547,1707600649653,-500.0,0.00038356,30]
[313706548,1707600649663,-500.0,0.00038356,30]
[313706549,1707600649672,-500.0,0.00038356,30]
[313706550,1707600649681,-450.0,0.00038356,12]
[313706551,1707600649692,-337.81290533,0.00038356,17]
[313706552,1707600649701,-500.0,0.00038356,30]
[313706553,1707600649712,-487.79201008,0.00038356,30]
[313706554,1707600649721,-500.0,0.00038356,30]
[313706555,1707600649730,-500.0,0.00038356,30]
[313706556,1707600649741,-500.0,0.00038356,30]
[313706557,1707600649751,-500.0,0.00038356,30]
[313706558,1707600649762,-500.0,0.00038356,30]
[313706559,1707600649771,-663.95,0.00038356,2]
[313706560,1707600649781,-500.0,0.00038356,30]
[313706561,1707600649793,-500.0,0.00038356,30]
[313706562,1707600649802,-500.0,0.00038356,30]
[313706563,1707600649812,-500.0,0.00038356,30]
[313706564,1707600649987,-500.0,0.00038356,30]
[313706565,1707600650010,-500.0,0.00038356,30]
[313706566,1707600650019,-500.0,0.00038356,30]
[313706567,1707600650029,-500.0,0.00038356,30]
[313706568,1707600650040,-594.35,0.00038356,30]
[313706569,1707600650049,-500.0,0.00038356,30]
[313706570,1707600650059,-500.0,0.00038356,30]
[313706571,1707600650068,-500.0,0.00038356,30]
[313706572,1707600650078,-578.66465498,0.00038356,30]
[313706573,1707600650088,-500.0,0.00038356,30]
[313706574,1707600650097,-500.0,0.00038356,30]
[313706575,1707600650107,-500.0,0.00038356,30]
[313706576,1707600650116,-500.0,0.00038356,30]
[313706577,1707600650126,-500.0,0.00038356,30]
[313706578,1707600650135,-651.25,0.00038356,30]
[313706579,1707600650145,-688.89,0.00038356,30]
[313706580,1707600650155,-463.94,0.00038356,30]
[313706581,1707600650164,-528.26,0.00038356,30]
[313706582,1707600650175,-1063.32,0.00038356,30]
[313706583,1707600650185,-500.0,0.00038356,30]
[313706584,1707600650194,-500.0,0.00038356,30]
[313706585,1707600650204,-500.0,0.00038356,30]
[313706586,1707600650214,-500.0,0.00038356,30]
[313706587,1707600650226,-500.0,0.00038356,30]
[313706588,1707600650236,-500.0,0.00038356,30]
[313706589,1707600650247,-500.0,0.00038356,30]
[313706590,1707600650256,-500.0,0.00038356,30]
[313706591,1707600650267,-500.0,0.00038356,30]
[313706592,1707600650276,-506.34,0.00038356,30]
[313706593,1707600650286,-519.82,0.00038356,30]
[313706594,1707600650295,-500.0,0.00038356,30]
[313706595,1707600650304,-388.80555447,0.00038356,30]
[313706596,1707600650315,-500.0,0.00038356,30]
[313706597,1707600650324,-500.0,0.00038356,30]
[313706598,1707600650335,-783.01,0.00038356,30]
[313706599,1707600650344,-500.0,0.00038356,30]
[313706600,1707600650354,-500.0,0.00038356,30]
[313706601,1707600650364,-500.0,0.00038356,30]
[313706602,1707600650373,-500.0,0.00038356,30]
[313706603,1707600650382,-500.0,0.00038356,30]
[313706604,1707600650392,-500.0,0.00038356,30]
[313706605,1707600650401,-500.0,0.00038356,30]
[313706606,1707600650412,-500.0,0.00038356,30]
[313706607,1707600650421,-500.0,0.00038356,30]
[313706608,1707600650432,-500.0,0.00038356,30]
[313706609,1707600650442,-543.5,0.00038356,30]
[313706610,1707600650452,-500.0,0.00038356,30]
[313706611,1707600650462,-500.0,0.00038356,30]
[313706612,1707600650471,-500.0,0.00038356,30]
[313706613,1707600650481,-500.0,0.00038356,30]
[313706614,1707600650491,-500.0,0.00038356,30]
[313706615,1707600650501,-500.0,0.00038356,30]
[313706616,1707600650510,-500.0,0.00038356,30]
[313706617,1707600650519,-500.0,0.00038356,30]
[313706618,1707600650528,-500.66,0.00038356,30]
[313706619,1707600650538,-517.06202453,0.00038356,30]
[313706620,1707600650548,-500.0,0.00038356,30]
[313706621,1707600650558,-500.0,0.00038356,30]
[313706622,1707600650567,-500.0,0.00038356,30]
[313706623,1707600650576,-814.81,0.00038356,2]
[313706624,1707600650586,-506.56496068,0.00038356,30]
[313706625,1707600650595,-500.0,0.00038356,30]
[313706626,1707600650605,-500.0,0.00038356,30]
[313706627,1707600650614,-500.0,0.00038356,30]
[313706628,1707600650624,-506.22172016,0.00038356,30]
[313706629,1707600650635,-1000.0,0.00038356,7]
[313706630,1707600650644,-500.0,0.00038356,30]
[313706631,1707600650654,-500.0,0.00038356,30]
[313706632,1707600650663,-621.57,0.00038356,30]
[313706633,1707600650673,-500.0,0.00038356,30]
[313706634,1707600650682,-500.0,0.00038356,30]
[313706635,1707600650692,-500.0,0.00038356,30]